bitfinex/quotes_ETHUSD_20220213
["timestamp","ask_amount","ask_price","bid_price","bid_amount"]
[1644749178051,1.45066947,2932.7,2932.3,0.09304962]
[1644749178240,1.45066947,2932.7,2932.5,0.01041635]
[1644749179344,1.45066947,2932.7,2932.3,0.09304962]
[1644749179547,1.45066947,2932.7,2932.5,0.01041539]
[1644749180389,1.45066947,2932.7,2932.3,0.09304962]
[1644749180816,1.45066947,2932.7,2932.5,0.01041539]
[1644749181594,1.45066947,2932.7,2932.3,0.08947561]
[1644749181992,1.45066947,2932.7,2932.5,0.01041539]
[1644749182996,1.45066947,2932.7,2932.3,0.08947561]
[1644749183192,1.45066947,2932.7,2932.5,0.01041545]
[1644749184059,1.45066947,2932.7,2932.3,0.08947561]
[1644749184246,1.45066947,2932.7,2932.5,0.01041545]
[1644749185245,1.45066947,2932.7,2932.3,0.08947561]
[1644749185445,1.45066947,2932.7,2932.5,0.01041545]
[1644749186446,1.45066947,2932.7,2932.3,0.08947561]
[1644749186848,1.45066947,2932.7,2932.5,0.01041545]
[1644749187688,1.45066947,2932.7,2932.4,1.02268]
[1644749187886,1.45066947,2932.7,2932.5,3.33991228]
[1644749188209,1.45066947,2932.7,2932.5,3.35032773]
[1644749188790,1.45066947,2932.7,2932.5,0.01041545]
[1644749190102,1.45066947,2932.7,2932.3,1.26514091]
[1644749190293,1.45066947,2932.7,2932.5,0.01041545]
[1644749191249,1.45066947,2932.7,2932.3,0.26514091]
[1644749191647,1.45066947,2932.7,2932.5,0.01041545]
[1644749192441,1.45066947,2932.7,2932.3,0.08947561]
[1644749192849,3.5,2932.6,2932.5,0.01041545]
[1644749193069,0.02083089,2932.4,2932.3,0.08947561]
[1644749193241,1.47150036,2932.4,2932.3,0.08947561]
[1644749194041,2.59094597,2932.4,2932.3,0.08947561]
[1644749194238,2.54094597,2932.4,2932.3,0.08947561]
[1644749195245,5.81708269,2932.4,2932.3,0.08947561]
[1644749197499,5.81708269,2932.4,2932.2,0.01098085]
[1644749197500,4.3,2932.3,2932.2,0.01098085]
[1644749197704,4.3,2932.3,2931.7,0.00357401]
[1644749197705,4.3,2932.2,2931.7,0.00357401]
[1644749197900,3.5,2932.1,2931.7,0.00357401]
[1644749198100,3.5,2932.1,2931.0,0.1705]
[1644749198101,5.0,2931.8,2931.0,0.1705]
[1644749198301,0.1705,2931.7,2931.1,0.00359787]
[1644749198502,1.1573643,2931.6,2931.1,0.04552254]
[1644749198778,0.1705,2931.9,2931.1,0.04552254]
[1644749198954,1.3534,2932.3,2931.2,0.34259129]
[1644749199154,1.1829,2932.3,2931.2,0.34259129]
[1644749199356,3.6705,2932.2,2931.3,0.21647699]
[1644749199552,3.6705,2932.2,2931.4,0.00359787]
[1644749199780,0.96421908,2931.9,2931.4,0.04381727]
[1644749199953,3.5,2932.2,2931.4,0.0402194]
[1644749200180,0.1705,2932.7,2931.4,0.0402194]
[1644749200181,0.65095006,2932.6,2931.5,0.17209129]
[1644749200361,5.38145006,2932.7,2931.6,0.00359787]
[1644749200561,5.38145006,2932.7,2931.7,0.1705]
[1644749200562,3.5,2932.5,2931.7,0.1705]
[1644749200861,3.5,2932.5,2931.8,0.00359787]
[1644749201158,1.15613756,2932.0,2931.6,0.17409787]
[1644749201357,3.5,2932.5,2931.7,0.00359787]
[1644749201575,3.5,2932.5,2931.6,0.00359787]
[1644749201766,3.5,2932.5,2931.6,0.1705]
[1644749202056,3.5,2932.5,2931.7,0.00359787]
[1644749202356,0.01098024,2932.2,2931.7,0.00359787]
[1644749202590,1.00024134,2932.2,2931.6,0.1705]
[1644749202896,1.00024134,2932.2,2931.7,0.00359787]
[1644749203091,3.19363979,2932.1,2931.7,0.00359787]
[1644749203304,3.19363979,2932.1,2931.6,0.1705]
[1644749203491,0.9892611,2932.2,2931.6,0.1705]
[1644749203698,0.9892611,2932.2,2931.2,1.26735625]
[1644749203699,0.9892611,2932.2,2931.7,0.00359787]
[1644749203892,0.9892611,2932.2,2931.3,0.17409787]
[1644749204091,3.23590515,2932.1,2931.6,0.17409787]
[1644749204298,0.9892611,2932.2,2931.4,0.0402194]
[1644749204497,0.9892611,2932.2,2931.5,0.1705]
[1644749204709,0.9892611,2932.2,2931.6,0.00359787]
[1644749205703,3.14148182,2932.1,2931.6,0.00359787]
[1644749205899,0.01098517,2932.0,2931.6,0.00359787]
[1644749206938,0.9892611,2932.2,2931.6,0.00359787]
[1644749207335,0.01098532,2931.9,2931.6,0.50595128]
[1644749207535,0.01098532,2931.9,2931.7,0.00359787]
[1644749208139,0.9892611,2932.2,2931.4,0.21431727]
[1644749208353,0.01098532,2931.9,2931.5,0.01098717]
[1644749209439,3.21520458,2932.1,2931.4,0.21431727]
[1644749209635,0.01098548,2931.8,2931.5,0.01098695]
[1644749210493,0.1705,2932.0,2931.4,0.0402194]
[1644749210985,0.1705,2932.0,2931.5,0.01098685]
[1644749210986,0.01098556,2931.8,2931.5,0.01098685]
[1644749211306,1.12691824,2931.7,2931.5,0.01098685]
[1644749211496,0.01098556,2931.8,2931.5,0.01098685]
[1644749211692,0.1705,2932.0,2931.4,0.0402194]
[1644749212094,0.01098564,2931.7,2931.5,0.01098674]
[1644749212893,0.91933356,2931.9,2931.3,0.00359787]
[1644749213095,0.91933356,2931.9,2931.2,0.89416625]
[1644749213321,0.01098564,2931.7,2931.5,0.01098674]
[1644749214139,0.91933356,2931.9,2931.3,0.0443857]
[1644749214344,0.01098564,2931.7,2931.5,0.01098674]
[1644749215354,0.91933356,2931.9,2931.4,0.0402194]
[1644749215564,0.01098564,2931.7,2931.5,0.01098674]
[1644749216543,0.91933356,2931.9,2931.4,0.0402194]
[1644749216789,0.01098564,2931.7,2931.5,0.01098674]
[1644749216946,0.01098564,2931.7,2931.5,0.01460473]
[1644749217159,0.01098564,2931.7,2931.5,0.01098674]
[1644749217851,0.91933356,2931.9,2931.4,0.0402194]
[1644749217987,0.01098564,2931.7,2931.5,0.01098674]
[1644749218914,0.91933356,2931.9,2931.4,0.0402194]
[1644749219301,0.01098564,2931.7,2931.5,0.01098674]
[1644749220097,0.91933356,2931.9,2931.4,0.0402194]
[1644749220492,0.01098564,2931.7,2931.5,0.01098674]
[1644749221441,1.14986733,2931.9,2931.4,0.0402194]
[1644749221656,0.01098564,2931.7,2931.5,0.01098674]
[1644749222545,1.14986733,2931.9,2931.4,0.0402194]
[1644749222743,0.01098564,2931.7,2931.5,0.01098674]
[1644749223843,1.14986733,2931.9,2931.3,0.04011664]
[1644749224044,0.01098564,2931.7,2931.5,0.01098674]
[1644749225096,3.14572378,2931.8,2931.3,0.04011664]
[1644749225296,3.14572378,2931.8,2931.5,0.01098674]
[1644749225297,1.46214005,2931.7,2931.5,0.01098674]
[1644749225495,4.71518666,2931.6,2931.5,0.01098674]
[1644749225729,1.45115441,2931.6,2931.5,0.01098674]
[1644749225895,0.01098564,2931.7,2931.5,0.01098674]
[1644749226097,3.38400826,2931.8,2931.1,0.21175348]
[1644749226307,1.45115712,2931.7,2931.2,0.00361799]
[1644749226496,1.46214276,2931.7,2931.5,0.01098674]
[1644749226698,0.01098564,2931.7,2931.5,0.01098674]
[1644749227397,1.14986733,2931.9,2931.3,0.04011664]
[1644749227598,0.01098564,2931.7,2931.5,0.01098674]
[1644749228599,3.20979899,2931.8,2931.0,0.04182191]
[1644749228846,0.01098564,2931.7,2931.5,0.01098674]
[1644749229143,1.45119351,2931.6,2931.5,0.01098674]
[1644749229345,4.92403426,2931.6,2931.5,0.01098674]
[1644749229557,4.3,2931.5,2931.0,0.04182191]
[1644749229742,4.9406372,2931.4,2931.0,0.04182191]
[1644749229953,3.48944369,2931.4,2931.0,0.04182191]
[1644749230150,0.8502124,2931.3,2931.0,0.04182191]
[1644749230359,3.66491669,2931.2,2931.0,0.04182191]
[1644749230747,3.66491669,2931.2,2930.7,0.04352718]
[1644749232492,3.66491669,2931.2,2930.8,0.01099363]
[1644749232894,1.45143957,2931.1,2930.9,0.04239033]
[1644749233106,3.27110287,2931.0,2930.9,0.04239033]
[1644749233498,3.82258261,2931.2,2930.9,0.04239033]
[1644749233699,3.65208261,2931.2,2930.9,0.04239033]
[1644749233918,3.65208261,2931.2,2930.8,0.01099363]
[1644749234116,3.65208261,2931.2,2930.9,0.04239033]
[1644749234300,0.1705,2931.1,2930.9,0.04239033]
[1644749234566,1.62198805,2931.1,2930.9,0.04239033]
[1644749234700,3.5294269,2931.0,2930.9,0.04239033]
[1644749234900,4.00879941,2931.2,2930.9,0.05338388]
[1644749235115,1.45149981,2931.1,2930.9,0.01099355]
[1644749235303,3.45984087,2931.0,2930.9,0.01099355]
[1644749235703,3.45984087,2931.0,2930.9,0.05338388]
[1644749235912,3.45984087,2931.0,2930.9,0.04239033]
[1644749236355,3.45984087,2931.0,2930.4,0.04523245]
[1644749236748,1.45156019,2930.9,2930.4,0.04523245]
[1644749236944,0.92301311,2930.7,2930.4,0.04523245]
[1644749237163,3.12905892,2930.6,2930.4,0.04523245]
[1644749237545,0.92301311,2930.7,2930.4,0.04523245]
[1644749237945,1.45167764,2930.6,2930.4,0.04523245]
[1644749238149,0.92301311,2930.7,2930.4,0.04523245]
[1644749238551,0.92301311,2930.7,2930.4,0.05622156]
[1644749238945,0.92301311,2930.7,2930.5,0.04466402]
[1644749239153,1.45168123,2930.6,2930.5,0.04466402]
[1644749239849,1.45168123,2930.6,2930.4,0.04523245]
[1644749241101,0.13569734,2930.3,2929.9,0.04807456]
[1644749241314,1.01690183,2930.2,2929.9,0.04807456]
[1644749241717,1.45194824,2930.1,2929.9,0.04807456]
[1644749241897,1.01690183,2930.2,2929.9,0.04807456]
[1644749242147,1.01690183,2930.2,2929.9,0.05905915]
[1644749242304,1.01690183,2930.2,2929.9,0.01098459]
[1644749242501,1.01690183,2930.2,2930.0,0.04750614]
[1644749243099,1.45202198,2930.1,2930.0,0.04750614]
[1644749243299,1.45202198,2930.1,2930.0,0.05849065]
[1644749243504,1.45202198,2930.1,2930.0,0.01098451]
[1644749243769,5.30500926,2930.1,2930.0,0.05849065]
[1644749243945,5.30500926,2930.1,2929.7,0.00361799]
[1644749243946,3.35,2930.0,2929.7,0.00361799]
[1644749244153,5.36723779,2929.9,2929.6,0.1706]
[1644749244362,5.36723779,2929.9,2928.7,0.25]
[1644749244363,1.45202198,2929.8,2928.7,0.25]
[1644749244549,3.82462544,2929.7,2928.9,0.00361836]
[1644749244744,1.01690183,2930.2,2928.9,0.00361836]
[1644749244745,4.69782425,2930.1,2928.9,0.00361836]
[1644749244949,0.98189164,2929.6,2928.9,0.00361836]
[1644749245167,1.45223396,2930.0,2928.5,7.48]
[1644749245168,0.874339,2929.0,2928.6,0.00361836]
[1644749245952,1.920239,2929.0,2928.4,0.00361836]
[1644749246364,1.45262167,2928.9,2928.0,0.00361836]
[1644749246561,0.91925016,2928.1,2927.9,0.51586027]
[1644749246752,1.1259,2928.9,2927.9,0.51586027]
[1644749246958,4.1239,2929.3,2928.3,0.0046209]
[1644749247167,1.45264212,2929.2,2928.3,0.0046209]
[1644749247370,0.1706,2929.1,2928.3,0.0046209]
[1644749247591,1.45264212,2929.0,2928.3,0.0046209]
[1644749247792,2.34823488,2929.0,2928.3,0.0046209]
[1644749248015,0.89559276,2929.0,2927.9,0.51586027]
[1644749248195,0.89559276,2929.0,2928.5,0.01098857]
[1644749248594,1.4291903,2927.8,2927.6,0.42209129]
[1644749248839,1.4291903,2927.8,2927.6,0.68915245]
[1644749249795,1.4291903,2927.8,2927.7,0.1707]
[1644749250298,1.4291903,2927.8,2927.7,0.34279129]
[1644749252966,1.4291903,2927.8,2927.7,0.1707]
[1644749254445,1.4291903,2927.8,2927.7,0.1207]
[1644749255828,0.79293332,2930.1,2927.8,4.6]
[1644749256015,4.9872,2929.8,2928.2,0.85362]
[1644749256199,4.8165,2929.8,2928.3,3.6706]
[1644749256412,1.45241845,2929.7,2928.4,1.0]
[1644749256629,0.99865162,2929.5,2928.5,0.1706]
[1644749256922,0.99865162,2929.5,2928.5,0.34269129]
[1644749257102,0.99865162,2929.5,2928.5,0.17209129]
[1644749257306,0.99865162,2929.5,2928.6,0.17209129]
[1644749258309,0.99865162,2929.5,2928.6,0.12209129]
[1644749258797,0.99865162,2929.5,2928.7,0.17209129]
[1644749258956,0.99865162,2929.5,2928.5,0.17209129]
[1644749259160,0.1706,2929.4,2928.5,0.17209129]
[1644749259760,0.1706,2929.4,2928.6,0.00360661]
[1644749261065,0.99865162,2929.5,2928.6,0.00360661]
[1644749263504,0.1706,2929.4,2928.6,0.00360661]
[1644749263702,0.1706,2929.4,2928.6,0.1756979]
[1644749263903,0.1706,2929.4,2928.7,0.00360661]
[1644749263904,0.01098861,2929.2,2928.7,0.00360661]
[1644749264700,0.1706,2929.4,2928.7,0.00360661]
[1644749264902,0.01098877,2929.1,2928.7,0.00360661]
[1644749265107,0.87973862,2929.0,2928.6,0.17209129]
[1644749266265,0.010989,2928.9,2928.6,0.17209129]
[1644749266483,0.010989,2928.9,2928.7,0.00360661]
[1644749266655,0.010989,2928.9,2928.6,0.17209129]
[1644749267054,0.1706,2929.7,2928.6,0.17209129]
[1644749267255,1.17994776,2929.5,2928.7,0.00360661]
[1644749267461,0.01098908,2928.9,2928.7,0.00360661]
[1644749268258,1.17994776,2929.5,2928.7,0.00360661]
[1644749268663,0.010989,2928.9,2928.7,0.00360661]
[1644749269467,1.17994776,2929.5,2928.7,0.00360661]
[1644749269864,0.010989,2928.9,2928.7,0.00360661]
[1644749270714,1.17994776,2929.5,2928.7,0.00360661]
[1644749271110,0.010989,2928.9,2928.7,0.00360661]
[1644749271938,1.17994776,2929.5,2928.7,0.00360661]
[1644749272112,0.010989,2928.9,2928.7,0.1756979]
[1644749272313,0.010989,2928.9,2928.8,0.00360661]
[1644749272513,0.010989,2928.9,2928.7,0.17209129]
[1644749273110,1.17994776,2929.5,2928.7,0.17209129]
[1644749273312,1.17994776,2929.5,2928.8,0.00360661]
[1644749273313,0.010989,2928.9,2928.8,0.00360661]
[1644749273517,0.010989,2928.9,2928.7,0.17209129]
[1644749274360,1.17994776,2929.5,2928.7,0.17209129]
[1644749274545,0.010989,2928.9,2928.8,0.00360661]
[1644749274747,0.010989,2928.9,2928.7,0.17209129]
[1644749275555,0.1706,2929.7,2928.7,0.17209129]
[1644749275752,0.010989,2928.9,2928.8,0.00360661]
[1644749275951,0.010989,2928.9,2928.7,1.17209129]
[1644749276151,0.010989,2928.9,2928.8,0.34269129]
[1644749276370,0.010989,2928.9,2928.8,4.03227119]
[1644749276557,0.010989,2928.9,2928.8,1.63911621]
[1644749276752,4.8165,2929.8,2928.8,2.63911621]
[1644749276973,0.01098892,2929.0,2928.9,0.00360661]
[1644749277152,0.01098892,2929.0,2928.8,1.63911621]
[1644749277359,0.01098892,2929.0,2928.9,0.17209129]
[1644749278005,4.9871,2929.8,2928.9,0.17209129]
[1644749278206,0.01098877,2929.1,2929.0,0.00360661]
[1644749278400,0.01098877,2929.1,2928.9,0.17209129]
[1644749279201,4.9871,2929.8,2928.9,0.17209129]
[1644749279403,0.01098869,2929.1,2929.0,0.00360661]
[1644749279627,0.01098869,2929.1,2928.9,1.02557129]
[1644749280201,0.01098869,2929.1,2928.8,0.17420661]
[1644749280401,0.99759518,2929.9,2928.9,0.17209129]
[1644749280611,0.01098869,2929.1,2929.0,0.17420661]
[1644749280813,0.01098869,2929.1,2929.0,1.1706]
[1644749281002,0.01098869,2929.1,2929.0,1.34269129]
[1644749281645,1.34787232,2930.1,2929.0,2.27184581]
[1644749281846,0.01098861,2929.2,2929.1,0.00361755]
[1644749282051,0.01098861,2929.2,2929.0,1.34269129]
[1644749282852,1.34787232,2930.1,2929.2,0.00111491]
[1644749283057,1.45222967,2930.0,2929.2,0.00111491]
[1644749283280,1.45222967,2930.0,2929.2,0.00473246]
[1644749283557,1.45222967,2930.0,2929.2,0.51676246]
[1644749283765,1.45222967,2930.0,2929.3,0.00361755]
[1644749284422,0.01098775,2929.7,2929.2,0.6780011]
[1644749284554,1.45222967,2929.6,2929.3,0.17209129]
[1644749285470,1.45222967,2929.5,2929.3,0.17209129]
[1644749285600,1.45222967,2929.5,2929.2,0.00111491]
[1644749286713,2.56547558,2929.4,2929.2,0.00111491]
[1644749286901,1.45222967,2929.3,2929.2,0.00111491]
[1644749287103,0.01098814,2929.5,2929.2,0.00111491]
[1644749287301,1.45226239,2929.4,2929.2,0.1732062]
[1644749287724,1.45226239,2929.3,2929.2,0.1732062]
[1644749288105,1.45226239,2929.3,2929.2,0.00111491]
[1644749288106,2.36063066,2929.3,2929.2,0.00111491]
[1644749288304,2.36063066,2929.3,2929.2,0.52302324]
[1644749289345,1.45226239,2929.3,2929.2,0.52302324]
[1644749289950,1.45225812,2929.3,2929.2,0.52302324]
[1644749290150,1.45225812,2929.8,2929.2,0.52302324]
[1644749290350,0.0109883,2929.4,2929.3,0.00361762]
[1644749290549,1.46324642,2929.4,2929.2,0.52302324]
[1644749290750,1.45225812,2929.3,2929.2,0.52302324]
[1644749291355,0.0109883,2929.4,2929.2,0.52302324]
[1644749291552,0.0109883,2929.4,2929.2,0.69511453]
[1644749291758,1.45225812,2929.3,2929.2,0.69511453]
[1644749292601,0.0109883,2929.4,2929.2,0.69511453]
[1644749292806,1.45225812,2929.3,2929.2,0.69511453]
[1644749294398,1.45225812,2929.3,2929.2,0.52302324]
[1644749294613,1.45225812,2929.3,2929.2,0.82302324]
[1644749294999,1.45225812,2929.3,2929.2,0.52302324]
[1644749298954,1.45225812,2929.3,2929.2,0.82302324]
[1644749299455,1.45225812,2929.3,2929.2,1.29511453]
[1644749300107,1.45225812,2929.3,2929.2,0.99511453]
[1644749300501,1.45225812,2929.3,2929.2,1.29511453]
[1644749300701,1.45225812,2929.3,2929.2,0.99511453]
[1644749300909,1.45225812,2929.3,2929.2,0.69511453]
[1644749301137,1.45225812,2929.3,2929.2,1.29511453]
[1644749301518,1.45225812,2929.3,2929.2,0.69511453]
[1644749301708,1.45225812,2929.3,2929.2,0.99511453]
[1644749302104,1.45225812,2929.3,2929.2,1.29511453]
[1644749302305,0.0109883,2929.4,2929.2,1.29511453]
[1644749302604,1.45225812,2929.3,2929.2,0.99511453]
[1644749302814,1.45225812,2929.3,2929.2,0.69511453]
[1644749304363,1.45225812,2929.3,2929.2,0.64511453]
[1644749308003,1.45225812,2929.3,2929.2,0.59511453]
[1644749309408,0.0109883,2929.4,2929.2,0.59511453]
[1644749309633,1.45225812,2929.3,2929.2,0.59511453]
[1644749311750,1.45225812,2929.3,2929.2,0.54511453]
[1644749311966,0.65095006,2929.7,2929.2,0.54511453]
[1644749311967,0.0109883,2929.4,2929.2,0.54511453]
[1644749312157,1.45225812,2929.3,2929.2,0.54511453]
[1644749313158,0.0109883,2929.4,2929.2,0.54511453]
[1644749313361,1.45225812,2929.3,2929.2,0.54511453]
[1644749316702,0.0109883,2929.4,2929.2,0.54511453]
[1644749316908,1.45225812,2929.3,2929.2,0.54511453]
[1644749319151,0.0109883,2929.4,2929.2,0.54511453]
[1644749319369,1.45225812,2929.3,2929.2,0.54511453]
[1644749320368,1.46324642,2929.4,2929.2,0.84511453]
[1644749320564,1.46324642,2929.4,2929.2,0.54511453]
[1644749320565,1.45225812,2929.3,2929.2,0.54511453]
[1644749320757,1.45225812,2929.3,2929.2,0.37302324]
[1644749322075,1.45225812,2929.3,2929.2,0.54511453]
[1644749323799,0.0097221,2929.4,2929.2,0.54511453]
[1644749324017,1.45225812,2929.3,2929.2,0.54511453]
[1644749325012,0.0097221,2929.4,2929.2,0.54511453]
[1644749325206,1.45225812,2929.3,2929.2,0.54511453]
[1644749326756,1.45225812,2929.3,2929.2,0.84511453]
[1644749329758,0.65095006,2929.7,2929.2,0.84511453]
[1644749329996,1.45225812,2929.8,2929.2,0.84511453]
[1644749329997,0.0109883,2929.4,2929.2,0.84511453]
[1644749330204,1.45225812,2929.3,2929.2,0.84511453]
[1644749331016,2.10320818,2929.8,2929.2,0.84511453]
[1644749331201,1.45225812,2929.3,2929.2,0.84511453]
[1644749332807,0.0109883,2929.4,2929.2,0.84511453]
[1644749333059,0.0109883,2929.4,2929.3,4.41989436]
[1644749333203,1.45219784,2929.4,2929.3,4.41989436]
[1644749333411,1.88865006,2929.9,2929.5,0.85325]
[1644749333412,0.65095006,2929.9,2929.5,0.85325]
[1644749333605,0.65095006,2929.9,2929.6,0.51195]
[1644749334056,1.45218363,2929.8,2929.6,0.51195]
[1644749334555,1.45218363,2929.7,2929.6,0.51195]
[1644749334964,0.01098759,2929.8,2929.6,0.51195]
[1644749335157,1.45218363,2929.7,2929.6,0.51195]
[1644749335361,1.45218363,2929.7,2929.6,3.82476645]
[1644749335561,2.12772286,2930.3,2929.7,4.3]
[1644749335562,0.13569734,2930.3,2929.7,4.3]
[1644749335759,1.4519839,2930.2,2929.8,3.89226253]
[1644749335960,7.8,2930.1,2929.7,1.70608]
[1644749336161,1.54902206,2929.4,2929.2,0.37302324]
[1644749336368,1.4519839,2929.3,2929.2,0.37302324]
[1644749350166,0.1905589,2929.4,2929.3,3.75]
[1644749350360,0.18157967,2929.9,2929.5,1.365]
[1644749350757,0.18157967,2929.9,2929.6,0.4706]
[1644749351357,0.1706,2929.9,2929.6,0.4706]
[1644749351556,0.18158076,2929.9,2929.6,0.4706]
[1644749351757,0.18158076,2929.9,2929.6,2.17676]
[1644749352257,0.18158076,2929.9,2929.6,3.17676]
[1644749352500,0.1706,2929.9,2929.6,3.999859]
[1644749352709,0.18158076,2929.9,2929.6,3.999859]
[1644749353808,0.1706,2929.9,2929.6,3.999859]
[1644749354011,0.18158076,2929.9,2929.6,3.999859]
[1644749354820,0.1706,2929.9,2929.6,3.999859]
[1644749355206,0.18158076,2929.9,2929.6,3.999859]
[1644749355608,0.03297042,2929.9,2929.7,5.0]
[1644749355808,0.13569734,2930.3,2929.8,5.4486]
[1644749356025,0.13569734,2930.3,2929.9,1.07601]
[1644749356260,0.652585,2930.8,2930.0,0.1706]
[1644749356451,0.652585,2930.8,2930.1,20.08]
[1644749356675,4.7114,2931.0,2930.3,0.86800684]
[1644749356676,0.652585,2930.9,2930.3,0.86800684]
[1644749356855,0.652585,2930.9,2930.3,0.6]
[1644749357253,4.152585,2931.0,2930.3,0.3]
[1644749357456,0.652585,2930.9,2930.3,0.3]
[1644749357653,0.652585,2930.9,2930.4,0.3]
[1644749357955,0.89999999,2930.3,2930.2,1.3]
[1644749358152,0.89999999,2930.3,2930.2,0.3]
[1644749358353,0.89999999,2930.3,2930.2,1.3]
[1644749358555,0.89999999,2930.3,2930.2,0.3]
[1644749358756,0.89999999,2930.3,2930.2,1.3]
[1644749364651,0.89999999,2930.3,2930.2,1.47209129]
[1644749366460,0.84999999,2930.3,2930.2,1.47209129]
[1644749370711,0.84999999,2930.3,2930.2,21.55209129]
[1644749371764,0.84999999,2930.3,2930.2,1.47209129]
[1644749373165,0.01098017,2930.4,2930.3,4.3]
[1644749373356,0.01098017,2930.4,2930.3,25.38]
[1644749373588,0.01098017,2930.4,2930.3,25.55209129]
[1644749373757,0.01098017,2930.4,2930.3,1.17209129]
[1644749374169,4.9153,2931.2,2930.3,0.17209129]
[1644749374365,0.01098001,2930.5,2930.3,0.17209129]
[1644749374779,0.01098001,2930.5,2930.3,3.67209129]
[1644749375206,0.01098001,2930.5,2930.4,1.3]
[1644749375404,4.9153,2931.2,2930.4,1.3]
[1644749375606,0.01097993,2930.5,2930.4,1.77209129]
[1644749375807,0.01097993,2930.5,2930.4,6.02324367]
[1644749376011,0.01097993,2930.5,2930.4,2.52324367]
[1644749376504,4.91932933,2931.2,2930.5,0.853]
[1644749376862,0.01097985,2930.6,2930.5,1.153]
[1644749377004,0.01097985,2930.6,2930.5,1.32509129]
[1644749377806,1.16232933,2931.2,2930.5,1.32509129]
[1644749378020,0.0109797,2930.7,2930.5,1.32509129]
[1644749378215,0.0109797,2930.7,2930.6,0.3]
[1644749378871,1.16232933,2931.2,2930.6,0.3]
[1644749379253,0.01097954,2930.8,2930.6,0.3]
[1644749379855,0.01097954,2930.8,2930.6,0.98388129]
[1644749380124,0.00402933,2931.2,2930.6,0.98388129]
[1644749380277,1.45161686,2931.1,2930.6,1.98388129]
[1644749380469,0.01097946,2930.8,2930.6,0.98388129]
[1644749380655,0.01097946,2930.8,2930.6,1.98388129]
[1644749381257,0.00402933,2931.4,2930.6,1.98388129]
[1644749381463,0.01097946,2930.8,2930.6,1.98388129]
[1644749381657,0.01097946,2930.8,2930.6,1.47209129]
[1644749381856,0.01097946,2930.8,2930.6,0.47209129]
[1644749382056,0.01097946,2930.8,2930.6,1.47209129]
[1644749382258,0.01097946,2930.8,2930.6,1.98388129]
[1644749382519,0.00402933,2931.4,2930.6,1.98388129]
[1644749382705,1.45162457,2931.3,2930.6,0.98388129]
[1644749382901,0.01097946,2930.8,2930.6,1.98388129]
[1644749383202,0.01097946,2930.8,2930.6,0.98388129]
[1644749383403,0.01097946,2930.8,2930.6,1.98388129]
[1644749383613,0.01097946,2930.8,2930.6,1.83684129]
[1644749383805,1.299,2931.7,2930.7,1.70567]
[1644749383806,0.00402933,2931.5,2930.7,1.70567]
[1644749384006,1.45150233,2931.4,2930.8,1.02338]
[1644749384206,1.45553166,2931.3,2930.8,1.02338]
[1644749384407,1.45150233,2931.2,2930.8,2.02338]
[1644749384622,1.1284,2931.7,2930.8,3.02576551]
[1644749384623,0.00402933,2931.3,2930.8,3.02576551]
[1644749384906,1.45151071,2931.2,2931.0,0.85281]
[1644749385106,0.01097891,2931.2,2931.0,0.85281]
[1644749385321,0.01097891,2931.2,2931.0,1.15281]
[1644749385512,0.01097891,2931.2,2931.0,1.32490129]
[1644749385918,0.01097891,2931.2,2931.0,2.32490129]
[1644749386107,0.00402933,2931.6,2931.0,2.32490129]
[1644749386358,0.01097883,2931.2,2931.0,5.70344563]
[1644749386568,0.01097883,2931.2,2931.0,2.32490129]
[1644749386955,0.01097883,2931.2,2931.0,5.62378684]
[1644749387365,0.00402933,2931.6,2931.0,2.83051351]
[1644749387567,0.01097883,2931.2,2931.0,6.15093085]
[1644749388457,0.00402933,2931.6,2931.0,6.15093085]
[1644749388671,1.45142805,2931.5,2931.0,6.15093085]
[1644749388875,0.01097883,2931.2,2931.0,6.15093085]
[1644749389569,0.01097883,2931.2,2931.1,3.36165893]
[1644749389758,0.00402933,2931.6,2931.1,3.36165893]
[1644749390005,0.01097883,2931.2,2931.1,4.36165893]
[1644749390211,0.01097883,2931.2,2931.1,1.0]
[1644749390417,0.01097883,2931.2,2931.0,1.80561222]
[1644749390613,1.45151599,2931.1,2931.0,1.80561222]
[1644749391032,0.00402933,2931.8,2931.0,1.80561222]
[1644749391285,0.00638081,2931.2,2931.0,5.15609598]
[1644749391426,0.00638081,2931.2,2931.1,3.3828125]
[1644749391725,1.45784884,2931.2,2931.1,0.85278]
[1644749391913,1.45784884,2931.2,2931.1,1.85278]
[1644749392115,1.45146803,2931.2,2931.1,0.85278]
[1644749392379,0.01097787,2931.3,2931.1,1.85278]
[1644749392513,1.45146803,2931.2,2931.1,0.85278]
[1644749392716,1.45146803,2931.2,2931.1,1.85278]
[1644749393113,1.45146803,2931.2,2931.0,1.80561222]
[1644749393315,1.45048927,2931.2,2931.0,1.80561222]
[1644749393517,0.00402933,2931.8,2931.0,1.80561222]
[1644749393518,0.01097787,2931.3,2931.0,1.80561222]
[1644749394562,0.65661433,2931.8,2931.0,1.80561222]
[1644749394762,0.01097787,2931.3,2931.0,0.80561222]
[1644749395629,0.01097787,2931.3,2931.1,0.85286]
[1644749395769,0.00402933,2931.8,2931.1,0.85286]
[1644749395974,0.01097787,2931.3,2931.1,1.85286]
[1644749396178,0.01097787,2931.3,2931.1,0.85286]
[1644749396369,0.01097787,2931.3,2931.1,1.85286]
[1644749396964,0.65661433,2931.8,2931.1,1.85286]
[1644749397165,0.01097779,2931.3,2931.1,1.85286]
[1644749398013,0.01097779,2931.3,2931.1,1.0]
[1644749398230,0.652585,2931.7,2931.1,1.0]
[1644749398416,0.01097779,2931.3,2931.0,1.14820351]
[1644749398615,0.01097779,2931.3,2931.1,0.85286]
[1644749399414,0.65661433,2931.8,2931.1,0.85286]
[1644749399613,0.01097779,2931.3,2931.1,0.85286]
[1644749399813,0.01097779,2931.3,2931.0,0.97770351]
[1644749400217,0.01097779,2931.3,2931.1,0.85286]
[1644749400619,0.65661433,2931.8,2931.1,0.85286]
[1644749400820,0.65661433,2931.8,2931.0,0.97770351]
[1644749400821,0.01097779,2931.3,2931.0,0.97770351]
[1644749401454,0.01097779,2931.3,2931.1,0.85282]
[1644749401657,0.00402933,2931.6,2931.1,0.85282]
[1644749401853,0.00402933,2931.6,2931.1,1.85282]
[1644749402057,0.01097779,2931.3,2931.1,1.85282]
[1644749402862,0.65661433,2931.8,2931.1,1.85282]
[1644749403277,0.01097779,2931.3,2931.1,1.85282]
[1644749404069,0.65661433,2931.8,2931.1,1.85282]
[1644749404470,0.01097779,2931.3,2931.1,1.85282]
[1644749405325,0.65661433,2931.8,2931.1,5.1120923]
[1644749405510,0.00402933,2931.8,2931.1,1.85282]
[1644749405717,0.01097779,2931.3,2931.1,1.85282]
[1644749406311,0.01097779,2931.3,2931.1,6.90756451]
[1644749406513,0.65661433,2932.0,2931.2,3.34878967]
[1644749406711,0.65661433,2932.0,2931.3,2.02324]